Cogmind - Beta 15 @@@ ROGUE MODE // 2025.09.14 @ 18:03:22 Player: Beter Result: Destroyed by G-34 Mercenary with Small Laser Performance ------------- Evolutions (1) 500 Regions Visited (2) 400 Robots Destroyed (15) 75 Value Destroyed (314) 314 Prototype IDs (0) 0 Alien Tech Used (0) 0 Bonus (0) 0 TOTAL SCORE: 1289 Bonus ------- None Cogmind --------- Core Integrity 0/400 Matter 22/300 Energy 250/250 System Corruption 4% Temperature Warm (127) Movement Core (150) Ox2 Location -9/Materials Parts ------- > --- POWER (1) -------- Ion Engine > --- PROPULSION (2) --- (None) > --- UTILITY (3) ------ Terrain Scan Processor Trap Extractor (0/4) > --- WEAPON (3) ------- (None) > --- INVENTORY (5) ---- Aluminum Leg Aluminum Leg Light Assault Rifle Light Assault Rifle Peak State ------------ > --- POWER ------------ Improved Ion Engine > --- PROPULSION ------- Light Treads Light Treads > --- UTILITY ---------- Terrain Scan Processor ECM Suite Light Armor Plating > --- WEAPON ----------- Assault Rifle Heavy Assault Rifle Mini Grenade Launcher > --- INVENTORY -------- Ion Engine Aluminum Leg Aluminum Leg Light Assault Rifle Light Assault Rifle [Rating: 13] Favorites ----------- Power Ion Engine Engine Ion Engine Propulsion Aluminum Leg Treads Light Treads Leg Aluminum Leg Utility Terrain Scan Processor Device ECM Suite Storage Small Storage Unit Processor Terrain Scan Processor Protection Light Armor Plating Weapon Light Assault Rifle Energy Gun Small Laser Ballistic Gun Light Assault Rifle Ballistic Cannon Improved Light Cannon Launcher Mini Grenade Launcher Impact Weapon Mace Build | -11 -10 -9 ------- Run | Yrd Mat Mat Slots Evolved 2 | . . 2 Power . | . . . Propulsion . | . . . Utility 1 | . . 1 Weapon 1 | . . 1 Parts Attached 26 | 6 9 11 Power 5 | 1 2 2 Engine 5 | 1 2 2 Core . | . . . Reactor . | . . . Propulsion 5 | 2 1 2 Treads 2 | . . 2 Leg 3 | 2 1 . Wheel . | . . . Hover . | . . . Flight . | . . . Utility 6 | 1 3 2 Device 3 | . 2 1 Storage 1 | 1 . . Processor 1 | . 1 . Hackware . | . . . Protection 1 | . . 1 Artifact . | . . . Weapon 10 | 2 3 5 Energy Gun 2 | 2 . . Energy Cannon . | . . . Ballistic Gun 5 | . 3 2 Ballistic Cannon 1 | . . 1 Launcher 1 | . . 1 Special Weapon . | . . . Impact Weapon 1 | . . 1 Slashing Weapon . | . . . Piercing Weapon . | . . . Special Melee Weapon . | . . . Unidentified Prototypes . | . . . Parts Lost 11 | . . 11 Power 2 | . . 2 Propulsion 2 | . . 2 Utility 2 | . . 2 Weapon 5 | . . 5 Highest Loss Streak 7 | . . 7 To Critical Strikes . | . . . Average Backups 4 | 1 3 4 Power . | . 1 . Propulsion 2 | . 2 2 Utility . | . . . Weapon 1 | . . 1 Tool/Special . | . . . Unused Backups 1 | . 1 . Power . | . . . Propulsion 1 | . 1 . Utility . | . . . Weapon . | . . . Tool/Special . | . . . Average Slot Usage (%) 79 | . 96 68 Engine 11 | . 14 9 Leg 17 | . 28 9 Device 8 | . 9 8 Storage 1 | . 4 . Processor 10 | . 10 11 Protection 2 | . . 4 Energy Gun 3 | . 8 . Ballistic Gun 16 | . 19 13 Ballistic Cannon 1 | . . 2 Launcher 3 | . . 5 Peak Build Rating 13 | 6 8 13 Average Rating 7 | 4 7 8 On Entrance 4 | . 6 8 Naked Turns . | . . . Heaviest Build 18 | 13 13 18 Greatest Support 40 | 20 20 40 Greatest Overweight (x) 4 | 4 . 4 Average Overweight (x) . | . . . Largest Inventory Capacity 8 | 8 8 5 Average Capacity 5 | 7 5 5 Most Carried 5 | 3 5 5 Average Carried 4 | 1 3 4 Final Capacity 8 | 8 5 5 Final Carried 5 | 3 5 4 Class Distribution -------------------- 56% | Mutant 21% | Scavenger-Mutant 11% | Scavenger-Tank 6% | Tank 3% | Gunner Dominant Class ---------------- Mutant | -10/Materials Mutant | -9/Materials Resources | -11 -10 -9 ----------- Run | Yrd Mat Mat Matter Collected 330 | 117 188 25 Remotely . | . . . Salvage Created 389 | . 261 128 Parts 37 | . 24 13 Haulers Intercepted . | . . . Recyclers Shooed . | . . . Parts Field Recycled . | . . . Retrieved Matter . | . . . Parts Self-Destructed . | . . . Prevented . | . . . Kills | -11 -10 -9 ------- Run | Yrd Mat Mat Combat Hostiles Destroyed 12 | . 6 6 Guns 9 | . 6 3 AOE 3 | . . 3 Classes Destroyed 7 | . 5 2 Builder 1 | . 1 . Recycler 1 | . 1 . Operator 1 | . 1 . Swarmer 7 | . 3 4 Grunt 3 | . 3 . Duelist 1 | . . 1 Sentry 1 | . . 1 Best Kill Streak 4 | . 4 3 Combat Bots Only 3 | . 3 3 Max Kills in Single Turn 3 | . 1 3 Gunslinging . | . . . Exploded 3 | . . 3 Melee . | . . . Uniques/NPCs Destroyed . | . . . Combat | -11 -10 -9 -------- Run | Yrd Mat Mat Hostile Shots Fired 211 | . 30 181 Missed 77 | . 10 67 Hits 134 | . 20 114 Melee 8 | . . 8 Projectile 126 | . 20 106 Critical Strikes 6 | . 1 5 Damage Taken 1847 | . 222 1625 Core 445 | . 45 400 Absorbed by Shields . | . . . Core Remaining (%) 91 | 100 82 . Volleys Fired 43 | . 26 17 Largest 3 | . 2 3 Hottest 90 | . 90 73 Shots Fired 85 | . 52 33 Gun 77 | . 52 25 Cannon 1 | . . 1 Launcher 7 | . . 7 Special . | . . . Kinetic 62 | . 36 26 Thermal 16 | . 16 . Explosive 7 | . . 7 Electromagnetic . | . . . Robot Hit Streak 9 | . 9 5 Robot Miss Streak 6 | . 6 3 Penetration Max . | . . . Secondary Targets . | . . . Shots Hit Robots 41 | . 28 13 Core Hits 27 | . 16 11 Critical Kills . | . . . Critical Parts Destroyed . | . . . Critical Strikes . | . . . Melee Attacks . | . . . Impact . | . . . Slashing . | . . . Piercing . | . . . Sneak Attacks . | . . . Combat Hostiles . | . . . Follow-up Attacks . | . . . Damage Inflicted 900 | 17 308 575 Guns 482 | . 308 174 Cannons . | . . . Explosions 390 | . . 390 Melee . | . . . Ramming 28 | 17 . 11 Kinetic 412 | . 238 174 Thermal 70 | . 70 . Explosive 390 | . . 390 Electromagnetic . | . . . Impact . | . . . Slashing . | . . . Piercing . | . . . Highest Corruption 4 | . . 4 Average Corruption 2 | . . 2 Corruption Purged . | . . . Corruption Blocked . | . . . Effects 7 | . . 7 Message Errors 1 | . . 1 Matter Fused 4 | . . 4 Heat Flow Errors 1 | . . 1 Weapon Failures 1 | . . 1 Overload Shots . | . . . Overflow Damage 35 | . . 35 Projectiles . | . . . Explosions 33 | . . 33 Melee 2 | . . 2 Knockbacks 1 | . . 1 Impact 1 | . . 1 Kinetic . | . . . Secondary . | . . . Self-Inflicted Damage 114 | . . 114 Shots 4 | . . 4 Rammed 10 | . . 10 Targets Rammed 16 | 4 1 11 Kicked 6 | 4 1 1 Crushed . | . . . Highest Temperature 192 | . 180 192 Average Temperature 55 | . 63 42 Received Heat Transfer 672 | . 129 543 Siege Activations . | . . . Martial Activations . | . . . Shielding Activations . | . . . Robots Disrupted . | . . . Combat Hostiles . | . . . Robots Corrupted . | . . . Combat Hostiles . | . . . Parts Fried . | . . . Impact Corruptions 1 | . . 1 Robots Melted . | . . . Combat Hostiles . | . . . Parts Melted . | . . . Heat Transferred 174 | . 174 . Parts Sabotaged . | . . . Parts Stolen . | . . . Parts Stripped . | . . . Power Chain Reactions . | . . . Alert | -11 -10 -9 ------- Run | Yrd Mat Mat Maximum Alert Level . | . . . Low Security (%) 100 | 100 100 100 Level 1 . | . . . Level 2 . | . . . Level 3 . | . . . Level 4 . | . . . Level 5 . | . . . High Security . | . . . Max Security . | . . . Peak Influence 129 | . 75 129 Initial 20 | . . 20 Average 29 | . 27 36 Influence Increases 425 | . 165 260 Destroy 0b10 Robot/C 240 | . 120 120 Destroy 0b10 Robot/NC 15 | . 15 . Destroy Leader 60 | . 30 30 Successful Hack 5 | . . 5 Disable Machine 15 | . . 15 Destroy Structure 45 | . . 45 Lose Combat Pursuer 45 | . . 45 Influence Decreases 412 | . 115 297 Entered New Map 30 | . . 30 Time Decay 272 | . 115 157 Lost Part 110 | . . 110 Squads Dispatched 2 | . 1 1 Investigation . | . . . Extermination . | . . . Reinforcement 2 | . 1 1 Assault . | . . . Garrison . | . . . Intercept . | . . . Searches Triggered . | . . . Construction Impeded . | . . . Haulers Reinforced . | . . . Active Scanning Responses . | . . . Cargo Convoy Interrupts . | . . . Stealth | -11 -10 -9 --------- Run | Yrd Mat Mat Distress Signals 2 | . . 2 Communications Jammed . | . . . Distress Signals . | . . . Times Spotted 24 | . 9 15 Peak Tracking Total 8 | . 3 8 Tactical Retreats 3 | . . 3 Traps | -11 -10 -9 ------- Run | Yrd Mat Mat Traps Triggered 1 | . . 1 Indirectly . | . . . Trap Hack Attempts . | . . . Triggered . | . . . Disarmed . | . . . Reprogrammed . | . . . Reused . | . . . Traps Extracted . | . . . Installed . | . . . Triggered . | . . . Machines | -11 -10 -9 ---------- Run | Yrd Mat Mat Machines Disabled 1 | . . 1 Max in Single Turn 1 | . . 1 Machines Repaired . | . . . Machines Dismantled . | . . . Machines Sabotaged . | . . . Overloaded Fab Kills . | . . . Hacking | -11 -10 -9 --------- Run | Yrd Mat Mat Machines Accessed 2 | . . 2 Terminals 2 | . . 2 Fabricators . | . . . Repair Stations . | . . . Recycling Units . | . . . Scanalyzers . | . . . Garrison Access . | . . . Total Hacks 5 | . . 5 Successful 2 | . . 2 Failed 3 | . . 3 Catastrophic . | . . . Database Lockouts . | . . . Manual . | . . . Terminals 5 | . . 5 Fabricators . | . . . Repair Stations . | . . . Recycling Units . | . . . Scanalyzers . | . . . Garrison Access . | . . . Terminal Hacks 2 | . . 2 Emergency Access Points 1 | . . 1 Zone Layout 1 | . . 1 Fabricator Hacks . | . . . Repair Station Hacks . | . . . Recycling Unit Hacks . | . . . Scanalyzer . | . . . Garrison Access Hacks . | . . . Unauthorized Hacks . | . . . Terminals . | . . . Fabricators . | . . . Repair Stations . | . . . Recycling Units . | . . . Scanalyzers . | . . . Garrison Access . | . . . Data Cores Recovered . | . . . Used . | . . . Hacking Detections 2 | . . 2 Full Trace Events 1 | . . 1 Feedback Events 1 | . . 1 Corruption 1 | . . 1 Feedback Blocked . | . . . Robot Schematics Acquired . | . . . Robots Built . | . . . Authchips . | . . . Time . | . . . Total Robot Build Rating . | . . . Part Schematics Acquired . | . . . Parts Built . | . . . Authchips . | . . . Time . | . . . Total Part Build Rating . | . . . Parts Repaired . | . . . Time . | . . . Parts Recycled . | . . . Recycled Matter . | . . . Retrieved Matter . | . . . Retrieved Components . | . . . Parts Scanalyzed . | . . . Part Schematics Acquired . | . . . Parts Damaged . | . . . Bothacking | -11 -10 -9 ------------ Run | Yrd Mat Mat Used RIF Installer . | . . . Robots Hacked . | . . . Non-combat . | . . . Combat . | . . . Robot Hacks Applied . | . . . Relay Couplers Released . | . . . Fabnet Peak Effective % . | . . . Robots Rewired . | . . . Allies Hacked . | . . . Hacks Repelled . | . . . Allies | -11 -10 -9 -------- Run | Yrd Mat Mat Total Allies . | . . . Largest Group . | . . . Highest-Rated Group . | . . . Highest-Rated Ally . | . . . Total Orders . | . . . Ally Attacks . | . . . Total Damage . | . . . Kills . | . . . Allies Corrupted . | . . . Allies Melted . | . . . Intel | -11 -10 -9 ------- Run | Yrd Mat Mat Active Infowar (turns) 458 | . 207 251 Seismic 68 | . 68 . ECM 390 | . 139 251 Robot Analysis Total . | . . . Derelict Logs Recovered . | . . . Drone Launches . | . . . Drone Recoveries . | . . . Exploration | -11 -10 -9 ------------- Run | Yrd Mat Mat Turns Passed 863 | 83 309 471 Spaces Moved 539 | 52 183 304 Core 159 | 14 . 145 Treads 7 | . . 7 Legs 373 | 38 183 152 Wheels . | . . . Hover . | . . . Flight . | . . . Fastest Speed 50 | 50 120 50 Average Speed 124 | 128 120 127 Slowest Speed 250 | 250 120 250 Overloaded Moves . | . . . Propulsion Burnouts . | . . . Robots Hopped . | . . . Potential Cave-ins . | . . . Cave-ins Triggered . | . . . Exploration Rate (%) 22 | 4 34 30 Regions Visited 2 Branch Regions . Pre-discovered Areas . | . . . Known Exits Taken . | . . . Unknown Exits Taken 2 | 1 1 . Scrap Searched . | . . . Spaces Dug . | . . . Terrain Destroyed 60 | . . 60 Melee . | . . . Projectile . | . . . AOE 60 | . . 60 Terrain Rammed . | . . . Walls Destroyed . | . . . Machines Disabled . | . . . Actions | -11 -10 -9 --------- Run | Yrd Mat Mat Total 631 | 64 221 346 Wait . | . . . Move 537 | 51 182 304 Hop . | . . . Pick Up 4 | 3 1 . Fast Attach 13 | 6 1 6 Attach 2 | . . 2 Detach . | . . . Swap 13 | . 8 5 Drop 3 | . 2 1 Fire 43 | . 26 17 Melee . | . . . Ram 10 | . . 10 Kick 6 | 4 1 1 Crush . | . . . Escape Stasis . | . . . Rewire . | . . . Trap . | . . . Miscellaneous . | . . . Route ------- -11/Scrapyard -10/Materials -9/Materials History --------- Turn | Location | Event 2 | -11/Scrapyard | Met Revision 17 31 | -11/Scrapyard | Discovered new exit (range 16) 84 | -11/Scrapyard | Entered Materials 359 | -10/Materials | Discovered new exit (range 8) 393 | -10/Materials | Entered another Materials area 393 | -9/Materials | Evolved 2 slots: Utility x1, Weapon x1 677 | -9/Materials | Lost 7 parts (1p2n2u2w) 712 | -9/Materials | Core integrity fell below 50% 779 | -9/Materials | Lost 3 parts (1p2w) 848 | -9/Materials | Core integrity fell below 20% 864 | -9/Materials | Destroyed by G-34 Mercenary with Small Laser Last Messages --------------- 00768_ System corrupted (+1). 00773_ D|X,C9X&CV/RPOLFZG9X 9TECA DJ 00788_ System corrupted: Matter fused (-8). 00812_ Slammed into A-02 Transporter. 00812_ Destabilizing: System interference. 00812_ Imp. Light Cannon temporarily disabled. 00812_ Terrain Scan Processor temporarily disabled. 00823_ K-01 Serf cleans the Material Compactor. 00831_ M-13 Machinist repairs G-34 Mercenary Sml. Laser. 00832_ Slammed into K-01 Serf. 00836_ System corrupted: Matter fused (-9). 00850_ Slammed into G-34 Mercenary. 00856_ Trap Extractor broken. 00856_ Destabilizing: Short circuit. 00856_ Imp. Light Cannon destroyed. 00858_ System corrupted: Heat flow error (+205). 00859_ Critical hit (Burn: +37). Map ----- +----------------------------------------------------+ | ????????????????????????????????????????????#+#### | | ??????????????????????????????????????????? | | ???????????????????????????????????????????? | | ??????????????????????????????????????????? | | ??????????????????????????????????????????? | | ?????????????????????????????????????????? | | ?????????????????????????????????????????????? | | ?????????????????????????????????????????????????? | | ?????????????????????????????????????????????????? | | ?????????????????????????????????????????????????? | | ?????????????????????????????????????????????????? | | ?????????????????????????????????????????????????? | | ?????????????????????????????????????????????????? | | ?????????????????????????????????????????????????? | | ?????????????????????????????????????????????????? | | ?????????????????????????????????????????????????? | | ?????????????????????????????????????????????????? | | ?????????????????????????????????????????????????? | | ???????????????????????????????????????????????### | | ???????????????????????????????????????????????# | | ???????????????????????????????????????????????# " | | ??????????????????################+##??????????# " | | ??????????????????? ########???# " | | ????????????????????? # #???# | | ??????????????????????? ??? #[ #?##### | | ????????????????????#####@#####?# # """ ### | | ????????????????????# #?# # R" + / """ | | ????????????????????# Ygg#?# # """ ### """ | | ????????????????????# """ #?# / #?# """ | | ????????????????????# """"" ### ########?# | | ????????????????????# """"" + #????????# | | ????????????????????# """"" ### #????????# | | ????????????????????# """ #?# #????????# | | ????????????????????# #?# #????????##### | | ????????????????????###########?# #????????????? | | ????????????????????????????????# +????????????? | | ????????????????????????????????# #????????????? | | ????????????????????????????????# ????????????? | | ????????????????????????????????# ???????????? | | ????????????????????????????????# ???????????? | | ????????????????????????????????# ??????????? | | ????????????????????????????????# ??????????? | | ????????????????????????????????# ?????????? | | ????????????????????????????????? ?????????? | | ????????????????????????????????? ##???????????? | | ????????????????????????????????? ?????????????? | | ?????????????????????????????????????????????????? | | ?????????????????????????????????????????????????? | | ?????????????????????????????????????????????????? | | ?????????????????????????????????????????????????? | +----------------------------------------------------+ Best States ------------- Heat Dissipation 28 Energy Generation 12 Energy Capacity 265 Matter Stores 202 Matter Capacity 300 Sight Range 16 Terrain Scan Density 85 ECM Strength 1 Armor Coverage 150 Evasion (%) 55 Recoil Reduction 2 Trap Extractor Capacity 4 Item Schematics ----------------- None Robot Schematics ------------------ None Fabricated ------------ Nothing Repaired ---------- Nothing Alien Tech Used ----------------- None Achievements -------------- None Challenges ------------ None Game ------ Seed TerrabombUtilityProtomatter Manual? 0 Play Time 00:17:01 Cumulative 5.7 hours Start 2025.09.14 @ 17:48:37 End 2025.09.14 @ 18:03:22 Sessions 1 Manual Loads 0 Difficulty Rogue Special Mode None Game No. 5 Rogue 5 Adventurer 0 Explorer 0 Win Type - Total 0 Types 0/0/0/0/0/0/0/0/0/0 Lore% 2 Gallery% 10 Achievement% 9 Wizard Run 0 Options --------- Layout 1 ASCII 0 Keyboard 1 Movement Numpad Keybinds 0 Fullscreen 1 Font 24/Smallcaps Map View 50x35 Zoom Use 0% Tactical HUD 1 Map Filters NONE Filters NONE Steam 1 RUN: 3f72ddf7-f77b-43ac-86fe-51cb372ebd15